bitfinex/quotes_BTCUSD_20250519
["timestamp","ask_amount","ask_price","bid_price","bid_amount"]
[1747671398222,0.2584851,104590.0,104580.0,0.27097433]
[1747671398460,0.2564851,104590.0,104580.0,0.28053593]
[1747671398677,0.05570109,104590.0,104580.0,0.29009697]
[1747671398897,0.06424653,104590.0,104580.0,0.28909697]
[1747671399989,0.26703054,104590.0,104580.0,0.27953556]
[1747671400189,0.26404606,104590.0,104580.0,0.28909697]
[1747671400602,0.27512461,104590.0,104580.0,0.00784784]
[1747671400806,0.27512461,104590.0,104580.0,0.21821291]
[1747671401010,0.27512461,104590.0,104580.0,0.20865104]
[1747671401215,0.27512461,104590.0,104580.0,0.218213]
[1747671401679,0.27512461,104590.0,104580.0,0.22777487]
[1747671401899,0.27512461,104590.0,104580.0,0.22948881]
[1747671402107,0.26556365,104590.0,104580.0,0.21992703]
[1747671402524,0.26556365,104590.0,104580.0,0.22948881]
[1747671402723,0.26556365,104590.0,104580.0,0.23905041]
[1747671402958,0.26556365,104590.0,104580.0,0.22948881]
[1747671403345,0.26556365,104590.0,104580.0,0.21036516]
[1747671403507,0.26556365,104590.0,104580.0,0.21992703]
[1747671403915,0.0095616,104580.0,104570.0,0.55396027]
[1747671404118,0.02210758,104580.0,104570.0,0.23308502]
[1747671405051,0.02210739,104580.0,104570.0,0.23308502]
[1747671405251,0.20794571,104580.0,104570.0,0.23408502]
[1747671405454,0.20496123,104580.0,104570.0,0.23408502]
[1747671405652,0.22408414,104580.0,104570.0,0.23408502]
[1747671406242,0.21452264,104580.0,104570.0,0.23408502]
[1747671406781,0.21452255,104580.0,104570.0,0.23408502]
[1747671410361,0.4676637,104580.0,104570.0,0.21975092]
[1747671410583,0.47722594,104580.0,104570.0,0.21975129]
[1747671410788,0.47722594,104580.0,104570.0,0.22931371]
[1747671410992,0.47722658,104580.0,104570.0,0.22931389]
[1747671411174,0.47722658,104580.0,104570.0,0.23887631]
[1747671411385,0.47722658,104580.0,104570.0,0.24843864]
[1747671412339,0.28598543,104580.0,104570.0,0.24843864]
[1747671412557,0.27642347,104580.0,104570.0,0.24843864]
[1747671412953,0.0301,104580.0,104570.0,0.24843864]
[1747671413166,0.03297964,104590.0,104580.0,0.21992621]
[1747671413381,0.23774014,104590.0,104580.0,0.21992621]
[1747671413613,0.24730055,104590.0,104580.0,0.21992621]
[1747671413826,0.25686132,104590.0,104580.0,0.21992621]
[1747671414039,0.24730055,104590.0,104580.0,0.21992621]
[1747671414316,0.24930055,104590.0,104580.0,0.21992621]
[1747671414722,0.24930046,104590.0,104580.0,0.21992621]
[1747671415678,0.25886114,104590.0,104580.0,0.21992621]
[1747671415887,0.24930046,104590.0,104580.0,0.21992621]
[1747671416118,0.05410046,104590.0,104580.0,0.21992621]
[1747671416315,0.24930046,104590.0,104580.0,0.2283088]
[1747671416516,0.06366114,104590.0,104580.0,0.2283088]
[1747671416720,0.26184562,104590.0,104580.0,0.2283088]
[1747671417020,0.25886114,104590.0,104580.0,0.2283088]
[1747671417278,0.24930046,104590.0,104580.0,0.2283088]
[1747671417689,0.25886114,104590.0,104580.0,0.2283088]
[1747671418602,0.25886114,104590.0,104580.0,0.22471686]
[1747671418816,0.24930046,104590.0,104580.0,0.22471686]
[1747671419028,0.20923996,104590.0,104580.0,0.22471686]
[1747671419233,0.19967964,104590.0,104580.0,0.22471686]
[1747671419441,0.01403996,104590.0,104580.0,0.25621686]
[1747671419669,0.21222444,104590.0,104580.0,0.25621686]
[1747671419905,0.20923996,104590.0,104580.0,0.25621686]
[1747671420109,0.00447964,104590.0,104580.0,0.25621686]
[1747671420321,0.20266412,104590.0,104580.0,0.25621686]
[1747671420538,0.00447964,104590.0,104580.0,0.25621686]
[1747671420729,0.00447964,104590.0,104580.0,0.28299541]
[1747671422048,0.00447964,104590.0,104580.0,0.27820476]
[1747671422264,0.00447964,104590.0,104580.0,0.30960476]
[1747671422488,0.00447964,104590.0,104580.0,0.92669076]
[1747671422722,0.00447964,104590.0,104580.0,1.02400016]
[1747671425128,0.00447964,104590.0,104580.0,1.37361301]
[1747671425335,0.00247964,104590.0,104580.0,1.37361301]
[1747671426176,0.00247964,104590.0,104580.0,1.37461301]
[1747671427912,0.00247964,104590.0,104580.0,1.38915386]
[1747671428559,0.00247964,104590.0,104580.0,1.58431386]
[1747671428805,0.0021,104610.0,104600.0,0.62098415]
[1747671429034,0.00224381,104610.0,104600.0,4.3604161]
[1747671430133,0.00224381,104610.0,104600.0,4.2344101]
[1747671430350,0.00324381,104610.0,104600.0,4.0434831]
[1747671430791,0.00224381,104610.0,104600.0,4.0434831]
[1747671430996,0.00224381,104610.0,104600.0,4.0444831]
[1747671431208,0.00224381,104610.0,104600.0,4.05516304]
[1747671431437,0.00424381,104610.0,104600.0,4.27751888]
[1747671431654,0.00050379,104610.0,104600.0,4.27751888]
[1747671431866,0.002,104630.0,104620.0,0.58994213]
[1747671432078,0.00204791,104630.0,104620.0,1.18893013]
[1747671432298,0.00204791,104630.0,104620.0,1.28623953]
[1747671432733,0.00204791,104630.0,104620.0,1.06350677]
[1747671432953,0.00204791,104630.0,104620.0,1.2833489]
[1747671433167,0.00904791,104630.0,104620.0,0.9789399]
[1747671433310,0.00904791,104630.0,104620.0,0.8095399]
[1747671433526,0.10131835,104630.0,104620.0,0.56100767]
[1747671433732,0.11385976,104630.0,104620.0,0.56100767]
[1747671434170,0.12341706,104630.0,104620.0,0.56100767]
[1747671434372,0.10430264,104630.0,104620.0,0.56100767]
[1747671434796,0.09474589,104630.0,104620.0,0.56100767]
[1747671435005,0.08518905,104630.0,104620.0,0.56100767]
[1747671435254,0.04184791,104630.0,104620.0,0.56459875]
[1747671435484,0.00904791,104630.0,104620.0,0.66190815]
[1747671436113,0.04044791,104630.0,104620.0,0.66190815]
[1747671436642,0.00904791,104630.0,104620.0,0.69450815]
[1747671438095,0.08200475,104630.0,104620.0,0.56459875]
[1747671438309,0.31138335,104630.0,104620.0,0.56459884]
[1747671438522,0.42068842,104630.0,104620.0,0.22748938]
[1747671438730,0.42068842,104630.0,104620.0,0.22748947]
[1747671438731,0.0915626,104630.0,104620.0,0.22748947]
[1747671438944,0.28271236,104630.0,104620.0,0.21434054]
[1747671439149,0.28271236,104630.0,104620.0,0.22389848]
[1747671439360,0.28271236,104630.0,104620.0,0.21434054]
[1747671439574,0.28271236,104630.0,104620.0,0.20478251]
[1747671439716,0.29226984,104630.0,104620.0,0.22389884]
[1747671439926,0.29226984,104630.0,104620.0,0.20478251]
[1747671440329,0.29226984,104630.0,104620.0,0.21434054]
[1747671440534,0.28271254,104630.0,104620.0,0.20478251]
[1747671440746,0.28271254,104630.0,104620.0,0.21434072]
[1747671440969,0.28387059,104630.0,104620.0,0.22389884]
[1747671441175,0.28387059,104630.0,104620.0,0.24301481]
[1747671441836,0.09272001,104630.0,104620.0,0.24301426]
[1747671442002,0.08498905,104630.0,104620.0,0.24301426]
[1747671442237,0.0945458,104630.0,104620.0,0.24301426]
[1747671442440,0.04910457,104630.0,104620.0,0.24301426]
[1747671442585,0.03954791,104630.0,104620.0,0.24301426]
[1747671442800,0.03954791,104630.0,104620.0,0.58301426]
[1747671443425,0.03954791,104630.0,104620.0,0.59379576]
[1747671443627,0.03954791,104630.0,104620.0,0.58301426]
[1747671444462,0.03954791,104630.0,104620.0,0.58780318]
[1747671444672,0.00904791,104630.0,104620.0,0.71821258]
[1747671445116,0.00904791,104630.0,104620.0,1.98015458]
[1747671445326,0.00904791,104630.0,104620.0,1.68796658]
[1747671445975,0.00904791,104630.0,104620.0,1.61469758]
[1747671446461,0.00204791,104630.0,104620.0,1.61369758]
[1747671446699,0.00404791,104630.0,104620.0,1.61369758]
[1747671447340,0.00404791,104630.0,104620.0,1.60890866]
[1747671447552,0.00404791,104630.0,104620.0,1.67703142]
[1747671447767,0.00604791,104630.0,104620.0,1.67703142]
[1747671448412,0.00604791,104630.0,104620.0,1.87187142]
[1747671448639,0.00404791,104630.0,104620.0,1.87187142]
[1747671448850,0.0342,104650.0,104640.0,0.2198001]
[1747671449062,0.0342,104650.0,104640.0,0.5598001]
[1747671449275,0.03718448,104650.0,104640.0,0.5598001]
[1747671449514,0.06808448,104650.0,104640.0,0.5598001]
[1747671449715,0.08719479,104650.0,104640.0,0.5598001]
[1747671450480,0.0871947,104650.0,104640.0,0.5598001]
[1747671450978,0.08719461,104650.0,104640.0,0.5598001]
[1747671451199,0.0382,104650.0,104640.0,0.56285627]
[1747671451439,0.08020275,104650.0,104640.0,0.56285627]
[1747671451680,0.11485311,104650.0,104640.0,0.56285655]
[1747671451870,0.28685648,104650.0,104640.0,0.54374423]
[1747671452045,0.283872,104650.0,104640.0,0.5628571]
[1747671452272,0.283872,104650.0,104640.0,0.5724134]
[1747671452465,0.283872,104650.0,104640.0,0.5819696]
[1747671453187,0.281472,104650.0,104640.0,0.58676015]
[1747671454545,0.281472,104650.0,104640.0,0.5867596]
[1747671454754,0.09035877,104650.0,104640.0,0.5867596]
[1747671454948,0.0933427,104650.0,104640.0,0.58675905]
[1747671455365,0.10289817,104650.0,104640.0,0.58675905]
[1747671455563,0.09334243,104650.0,104640.0,0.58675905]
[1747671455769,0.04183239,104650.0,104640.0,0.58675905]
[1747671455975,0.03884791,104650.0,104640.0,0.58675905]
[1747671456175,0.03884791,104650.0,104640.0,0.5819685]
[1747671457040,0.00704791,104650.0,104640.0,0.6138685]
[1747671457464,0.00704791,104650.0,104640.0,0.64060615]
[1747671458329,0.00704791,104650.0,104640.0,2.60441155]
[1747671459458,0.00404791,104650.0,104640.0,2.60441155]
[1747671459962,4.791e-05,104650.0,104640.0,2.60441155]
[1747671460396,0.00204791,104650.0,104640.0,2.60441155]
[1747671460612,0.00304791,104650.0,104640.0,2.60441155]
[1747671461685,0.00304791,104650.0,104640.0,2.6189524]
[1747671462976,0.00304791,104650.0,104640.0,2.9570324]
[1747671463190,0.00104791,104650.0,104640.0,2.9570324]
[1747671463354,0.00104791,104650.0,104640.0,2.9590324]
[1747671463566,4.791e-05,104650.0,104640.0,2.9590324]
[1747671463953,4.791e-05,104650.0,104640.0,2.9610324]
[1747671466138,4.791e-05,104650.0,104640.0,3.3692324]
[1747671466689,4.791e-05,104650.0,104640.0,3.0311524]
[1747671466920,4.791e-05,104650.0,104640.0,3.1433524]
[1747671467123,4.791e-05,104650.0,104640.0,3.01591155]
[1747671467331,4.791e-05,104650.0,104640.0,3.15911155]
[1747671468843,0.08979059,104670.0,104660.0,0.2197581]
[1747671469051,0.0859858,104670.0,104660.0,0.59605014]
[1747671469266,0.26751051,104670.0,104660.0,0.20064962]
[1747671469444,0.26452603,104670.0,104660.0,0.210204]
[1747671469722,0.033,104660.0,104650.0,0.2102069]
[1747671469905,0.06464707,104660.0,104650.0,0.2102069]
[1747671470120,0.06464716,104660.0,104650.0,0.2102069]
[1747671470541,0.06464707,104660.0,104650.0,0.5502069]
[1747671470753,0.05509269,104660.0,104650.0,0.5502069]
[1747671471208,0.05509269,104660.0,104650.0,0.55426307]
[1747671471983,0.04255392,104660.0,104650.0,0.55426307]
[1747671472198,0.07445392,104660.0,104650.0,0.55426307]
[1747671472416,0.09356213,104660.0,104650.0,0.55426307]
[1747671472634,0.08400793,104660.0,104650.0,0.55426307]
[1747671472853,0.09356222,104660.0,104650.0,0.55426307]
[1747671473591,0.09356213,104660.0,104650.0,0.55426307]
[1747671473798,0.09654753,104660.0,104650.0,0.55426398]
[1747671474003,0.09654753,104660.0,104650.0,0.57337429]
[1747671474211,0.08699297,104660.0,104650.0,0.57337429]
[1747671474432,0.09654753,104660.0,104650.0,0.57337429]
[1747671474639,0.28764241,104660.0,104650.0,0.56381927]
[1747671474854,0.09356296,104660.0,104650.0,0.57337429]
[1747671475079,0.29719706,104660.0,104650.0,0.56381927]
[1747671475262,0.10311761,104660.0,104650.0,0.57337429]
[1747671475484,0.09654744,104660.0,104650.0,0.57337429]
[1747671475712,0.0869926,104660.0,104650.0,0.57337429]
[1747671475921,0.03598448,104660.0,104650.0,0.57337429]
[1747671476151,0.033,104660.0,104650.0,0.57337429]
[1747671476372,0.033,104660.0,104650.0,0.72763377]
[1747671476594,0.033,104660.0,104650.0,0.70088369]
[1747671476808,0.033,104660.0,104650.0,0.7276371]
[1747671477045,0.22646,104670.0,104660.0,0.5597581]
[1747671477278,0.0319,104670.0,104660.0,0.58651151]
[1747671477523,0.0414531,104670.0,104660.0,0.58651151]
[1747671477741,0.04145301,104670.0,104660.0,0.58956768]
[1747671477957,0.04145301,104670.0,104660.0,0.56281427]
[1747671478173,0.0329,104670.0,104660.0,0.58956804]
[1747671478839,0.05200647,104670.0,104660.0,0.58956804]
[1747671479051,0.08700638,104670.0,104660.0,0.58956804]
[1747671479279,0.0774531,104670.0,104660.0,0.58956804]
[1747671479502,0.0679,104670.0,104660.0,0.58956804]
[1747671479722,0.0774531,104670.0,104660.0,0.58956804]
[1747671480047,0.09655994,104670.0,104660.0,0.58956804]
[1747671480249,0.0774531,104670.0,104660.0,0.58956804]
[1747671480667,0.0444531,104670.0,104660.0,0.58956804]
[1747671480956,0.0349,104670.0,104660.0,0.58956804]
[1747671481282,0.04445301,104670.0,104660.0,0.58956804]
[1747671481724,0.0540062,104670.0,104660.0,0.58956804]
[1747671482383,0.04445301,104670.0,104660.0,0.58956804]
[1747671482615,0.05400629,104670.0,104660.0,0.52851511]
[1747671482834,0.04445301,104670.0,104660.0,0.55717824]
[1747671483492,0.05400611,104670.0,104660.0,0.55717824]
[1747671484362,0.04445301,104670.0,104660.0,0.55717824]
[1747671484585,0.0349,104670.0,104660.0,0.55717824]
[1747671484797,0.0349,104670.0,104660.0,0.56197071]
[1747671485011,0.04445319,104670.0,104660.0,0.56197071]
[1747671485318,0.0349,104670.0,104660.0,0.56197071]
[1747671485535,0.0444531,104670.0,104660.0,0.56197071]
[1747671486155,0.0349,104670.0,104660.0,0.56197071]
[1747671486583,0.0349,104670.0,104660.0,0.59327071]
[1747671486809,0.003,104670.0,104660.0,1.70946511]
[1747671487035,0.003,104670.0,104660.0,1.73966511]
[1747671487258,0.003,104670.0,104660.0,0.71254786]
[1747671487467,0.002,104670.0,104660.0,0.71254786]
[1747671487904,0.002,104670.0,104660.0,0.71354786]
[1747671488064,0.48055646,104690.0,104680.0,0.21016384]
[1747671488403,0.49501857,104690.0,104680.0,0.21016384]
[1747671488785,0.49501857,104690.0,104680.0,0.2197163]
[1747671488991,0.49501857,104690.0,104680.0,0.22926867]
[1747671489196,0.49901857,104690.0,104680.0,0.22926867]
[1747671489900,0.30745857,104690.0,104680.0,0.22926867]
[1747671490098,0.26037339,104690.0,104680.0,0.23882095]
[1747671490305,0.05626211,104690.0,104680.0,0.58546813]
[1747671490510,0.05626211,104690.0,104680.0,0.61736813]
[1747671491100,0.04194376,104690.0,104680.0,0.61736813]
[1747671491912,0.041856,104690.0,104680.0,0.61736813]
[1747671492140,0.009056,104690.0,104680.0,0.71467753]
[1747671492355,0.009056,104690.0,104680.0,1.99923353]
[1747671492589,0.009056,104690.0,104680.0,1.94446605]
[1747671493017,0.005056,104690.0,104680.0,1.83167505]
[1747671493229,0.002056,104690.0,104680.0,1.83167505]
[1747671493652,0.003056,104690.0,104680.0,1.83167505]
[1747671494094,0.00062957,104690.0,104680.0,1.83767161]
[1747671494312,0.05174082,104700.0,104690.0,0.55969513]
[1747671494528,0.04266937,104700.0,104690.0,0.68720453]
[1747671494737,0.05221992,104700.0,104690.0,0.68720453]
[1747671494944,0.05221992,104700.0,104690.0,0.65700453]
[1747671495156,0.06177074,104700.0,104690.0,0.64745316]
[1747671495404,0.07532165,104700.0,104690.0,0.55969513]
[1747671495613,0.06577074,104700.0,104690.0,0.55969513]
[1747671496038,0.05821992,104700.0,104690.0,0.5627513]
[1747671496245,0.04866937,104700.0,104690.0,0.5938513]
[1747671496657,0.0065191,104700.0,104690.0,0.6911607]
[1747671496833,0.0045191,104700.0,104690.0,0.71789464]
[1747671497069,0.0055191,104700.0,104690.0,0.71789464]
[1747671497487,0.01106946,104700.0,104690.0,0.71789464]
[1747671497700,0.0035191,104700.0,104690.0,0.71789464]
[1747671497916,0.04456937,104700.0,104690.0,0.71789464]
[1747671498122,0.04456937,104700.0,104690.0,0.68679464]
[1747671498739,0.0350191,104700.0,104690.0,0.68679464]
[1747671498943,0.0350191,104700.0,104690.0,0.71839464]
[1747671499122,0.0035191,104700.0,104690.0,0.71839464]
[1747671500518,0.0035191,104700.0,104690.0,0.74704764]
[1747671501966,0.0035191,104700.0,104690.0,1.64328764]
[1747671502171,0.0035191,104700.0,104690.0,1.31261464]
[1747671502593,0.0035191,104700.0,104690.0,1.20145364]
[1747671503042,0.0035191,104700.0,104690.0,1.23395364]
[1747671503251,0.0035191,104700.0,104690.0,1.20145364]
[1747671503456,0.0035191,104700.0,104690.0,1.1747197]
[1747671503681,0.0035191,104700.0,104690.0,1.2072197]
[1747671503894,0.0035191,104700.0,104690.0,1.2339148]
[1747671504727,0.0035191,104700.0,104690.0,0.8938678]
[1747671505381,0.0336191,104700.0,104690.0,0.8938678]
[1747671505792,0.0035191,104700.0,104690.0,0.8938678]
[1747671506903,0.0035191,104700.0,104690.0,0.9268678]
[1747671507111,0.0035191,104700.0,104690.0,0.8671727]
[1747671507325,0.0335191,104700.0,104690.0,0.7203137]
[1747671508943,0.0335191,104700.0,104690.0,0.74700559]
[1747671510388,0.01061533,104700.0,104690.0,0.74700559]
[1747671510607,0.00214,104710.0,104700.0,0.55967414]
[1747671510815,0.03254,104710.0,104700.0,0.55967414]
[1747671511839,0.03654,104710.0,104700.0,0.55967414]
[1747671512037,0.03654,104710.0,104700.0,0.56273031]
[1747671512202,0.03854,104710.0,104700.0,0.56273031]
[1747671513473,0.04084,104710.0,104700.0,0.56273031]
[1747671513994,0.04084,104710.0,104700.0,0.56751224]
[1747671514606,0.07094,104710.0,104700.0,0.56751224]
[1747671514822,0.04084,104710.0,104700.0,0.56751224]
[1747671516718,0.04084,104710.0,104700.0,0.56273031]
[1747671517977,0.61973899,104710.0,104700.0,0.00305617]
[1747671518224,0.70749885,104710.0,104700.0,0.00305617]
[1747671518379,0.90169885,104710.0,104700.0,0.00305617]
[1747671518590,0.47526363,104710.0,104700.0,0.19407813]
[1747671518860,0.47526363,104710.0,104700.0,0.20362913]
[1747671518988,0.46571381,104710.0,104700.0,0.20362913]
[1747671519187,0.27151381,104710.0,104700.0,0.00305617]
[1747671519406,0.78528954,104710.0,104700.0,0.00305617]
[1747671519780,0.88259894,104710.0,104700.0,0.00305617]
[1747671520522,0.88259894,104710.0,104700.0,0.00664532]
[1747671523630,0.55347312,104710.0,104700.0,0.00664532]
[1747671529173,0.55351312,104710.0,104700.0,0.00664532]
[1747671530620,0.55351312,104710.0,104700.0,0.00358915]
[1747671535033,0.20944936,104710.0,104700.0,0.59576329]
[1747671535211,0.22854844,104710.0,104700.0,0.59576329]
[1747671535409,0.23809835,104710.0,104700.0,0.59576329]
[1747671535847,0.22854844,104710.0,104700.0,0.59696049]
[1747671536049,0.00566,104710.0,104700.0,0.59696049]
[1747671536254,0.00566,104710.0,104700.0,0.62373049]
[1747671536472,0.00566,104710.0,104700.0,0.65673049]
[1747671536646,0.01520954,104710.0,104700.0,0.65673049]
[1747671536834,0.01520945,104710.0,104700.0,0.65673049]
[1747671537072,0.00566,104710.0,104700.0,0.65673049]
[1747671538787,0.01520945,104710.0,104700.0,0.65194414]
[1747671538964,0.00566,104710.0,104700.0,0.65194414]
[1747671539366,0.00566,104710.0,104700.0,0.74925354]
[1747671539587,0.00566,104710.0,104700.0,0.77790354]
[1747671542420,0.00566,104710.0,104700.0,0.74490354]
[1747671542737,0.01520954,104710.0,104700.0,0.74490354]
[1747671543187,0.01520945,104710.0,104700.0,0.74490354]
[1747671543397,0.01520945,104710.0,104700.0,0.61894414]
[1747671543714,0.02475908,104710.0,104700.0,0.61894414]
[1747671544291,0.0343089,104710.0,104700.0,0.61894414]
[1747671544509,0.0343089,104710.0,104700.0,0.36677]
[1747671544510,0.27671271,104710.0,104700.0,0.36677]
[1747671544746,0.00955027,104700.0,104690.0,0.2619826]
[1747671544944,0.02865136,104700.0,104690.0,0.38605757]
[1747671545361,0.03820209,104700.0,104690.0,0.71647]
[1747671545594,0.27107569,104700.0,104690.0,0.58646069]
[1747671545797,0.27107633,104700.0,104690.0,0.58646069]
[1747671546020,0.07050328,104700.0,104690.0,0.59601206]
[1747671546223,0.26152569,104700.0,104690.0,0.57690923]
[1747671546562,0.25197496,104700.0,104690.0,0.36676557]
[1747671546768,0.26527305,104700.0,104690.0,0.53104021]
[1747671546978,0.26527305,104700.0,104690.0,0.34]
[1747671547209,0.26627305,104700.0,104690.0,0.54059222]
[1747671547412,0.26627305,104700.0,104690.0,0.55014404]
[1747671547642,0.23387305,104700.0,104690.0,0.56924723]
[1747671547860,0.24342387,104700.0,104690.0,0.56924723]
[1747671548061,0.02010137,104700.0,104690.0,0.60949805]
[1747671548381,0.02965228,104700.0,104690.0,0.61427194]
[1747671548607,0.02308585,104700.0,104690.0,0.58357194]
[1747671548804,0.03263676,104700.0,104690.0,0.58357194]
[1747671549898,0.04218776,104700.0,104690.0,0.58357194]
[1747671550106,0.07328776,104700.0,104690.0,0.58357194]
[1747671550709,0.06373676,104700.0,104690.0,0.58357194]
[1747671551317,0.06373676,104700.0,104690.0,0.61034672]
[1747671552028,0.01055027,104700.0,104690.0,0.64134672]
[1747671552193,0.001,104700.0,104690.0,0.64134672]
[1747671552389,0.001,104700.0,104690.0,0.77165612]
[1747671552995,0.001,104700.0,104690.0,1.67521412]
[1747671553427,0.001,104700.0,104690.0,1.01740712]
[1747671553630,0.001,104700.0,104690.0,0.77165612]
[1747671553830,0.001,104700.0,104690.0,0.76688223]
[1747671555206,0.001,104700.0,104690.0,0.79553423]
[1747671556726,0.001,104700.0,104690.0,0.45553423]
[1747671558044,0.001,104700.0,104690.0,1.00759823]
[1747671559163,0.001,104700.0,104690.0,0.96958123]
[1747671559323,0.001,104700.0,104690.0,0.45553423]
[1747671560294,0.001,104700.0,104690.0,0.71660723]
[1747671560641,0.001,104700.0,104690.0,0.68795523]
[1747671560829,0.001,104700.0,104690.0,1.03848505]
[1747671561265,0.001,104700.0,104690.0,1.02795523]
[1747671562234,0.001,104700.0,104690.0,0.76688223]
[1747671562649,0.001,104700.0,104690.0,0.73388223]
[1747671565331,0.001,104700.0,104690.0,0.99719423]
[1747671565981,0.001,104700.0,104690.0,0.96862723]
[1747671567876,0.001,104700.0,104690.0,1.00122723]
[1747671570021,0.001,104700.0,104690.0,1.0108148]
[1747671570930,0.001,104700.0,104690.0,1.02535565]
[1747671572052,0.001,104700.0,104690.0,1.0108148]
[1747671572277,0.001,104700.0,104690.0,1.1539748]
[1747671574020,0.001,104700.0,104690.0,1.5621748]
[1747671575051,0.001,104700.0,104690.0,1.34628536]
[1747671575232,0.001,104700.0,104690.0,1.53732557]
[1747671575901,0.001,104700.0,104690.0,1.53728946]
[1747671576104,0.001,104700.0,104690.0,1.55639265]
[1747671576480,0.001,104700.0,104690.0,1.56594447]
[1747671579003,0.001,104700.0,104690.0,1.15774447]
[1747671579790,8e-05,104720.0,104710.0,0.59145317]
[1747671580089,8e-05,104720.0,104710.0,2.38296035]
[1747671580836,8e-05,104720.0,104710.0,2.3975012]
[1747671582240,0.00208,104720.0,104710.0,2.3975012]
[1747671582441,0.00308,104720.0,104710.0,2.3975012]
[1747671582647,8e-05,104720.0,104710.0,2.3975012]
[1747671582837,8e-05,104720.0,104710.0,2.8057012]
[1747671583318,8e-05,104720.0,104710.0,2.65443135]
[1747671583698,8e-05,104720.0,104710.0,2.44186835]
[1747671584099,0.53372,104730.0,104720.0,0.55963219]
[1747671584299,0.53386365,104730.0,104720.0,1.12294259]
[1747671585214,0.53386365,104730.0,104720.0,1.1824645]
[1747671585418,0.50166365,104730.0,104720.0,1.1824645]
[1747671585625,0.50466365,104730.0,104720.0,1.1824645]
[1747671586034,0.50466365,104730.0,104720.0,1.1496645]
[1747671586361,0.50466365,104730.0,104720.0,1.1812645]
[1747671588999,0.50466365,104730.0,104720.0,1.5894645]
[1747671590691,0.50466365,104730.0,104720.0,1.1812645]
[1747671591697,0.50466365,104730.0,104720.0,1.42034535]
[1747671592601,0.50266365,104730.0,104720.0,1.42034535]
[1747671593644,0.50166365,104730.0,104720.0,1.42993292]
[1747671594083,0.50166365,104730.0,104720.0,1.43993292]
[1747671594286,4e-05,104740.0,104730.0,0.56961122]
[1747671594496,0.00214,104750.0,104740.0,0.6365311]
[1747671594695,0.00214,104750.0,104740.0,4.43234055]
[1747671594903,0.00214,104750.0,104740.0,4.76866055]
[1747671595351,0.07663318,104770.0,104760.0,0.57408919]
[1747671595579,4e-05,104780.0,104770.0,0.55952737]
[1747671595784,0.00018365,104780.0,104770.0,1.42109077]
[1747671596201,0.03288365,104780.0,104770.0,0.86061477]
[1747671596853,0.03288365,104780.0,104770.0,0.86841004]
[1747671598187,0.03988365,104780.0,104770.0,0.86841004]
[1747671599215,0.28044674,104780.0,104770.0,0.20823413]
[1747671599654,0.08957062,104780.0,104770.0,0.21777839]
[1747671599862,0.29297324,104780.0,104770.0,0.20823413]
[1747671600056,0.08957062,104780.0,104770.0,0.22732265]
[1747671600303,0.09255277,104780.0,104770.0,0.23686672]
[1747671600494,0.09255277,104780.0,104770.0,0.2321235]
[1747671600725,0.44076592,104780.0,104770.0,0.22257943]
[1747671600927,0.43778313,104780.0,104770.0,0.22257943]
[1747671601081,0.42823942,104780.0,104770.0,0.2321235]
[1747671601659,0.43778304,104780.0,104770.0,0.2321235]
[1747671602242,0.41869579,104780.0,104770.0,0.2321235]
[1747671602510,0.0991135,104780.0,104770.0,0.2321235]
[1747671602713,0.07048365,104780.0,104770.0,0.2321235]
[1747671602914,0.03988365,104780.0,104770.0,0.2321235]
[1747671603667,0.07118365,104780.0,104770.0,0.23567675]
[1747671604305,0.03688365,104780.0,104770.0,0.23567675]
[1747671604583,0.00418365,104780.0,104770.0,0.67298615]
[1747671604800,0.00218365,104780.0,104770.0,0.70358615]
[1747671605021,0.00418365,104780.0,104770.0,0.70358615]
[1747671605236,0.00418365,104780.0,104770.0,0.67298615]
[1747671606183,0.00418365,104780.0,104770.0,3.43585615]
[1747671607232,0.00418365,104780.0,104770.0,1.4277049]
[1747671607444,0.00418365,104780.0,104770.0,1.4081299]
[1747671607659,0.0334,104790.0,104780.0,0.55950643]
[1747671607868,0.0334,104790.0,104780.0,0.80046683]
[1747671608857,0.0374,104790.0,104780.0,0.80046683]
[1747671609308,0.0374,104790.0,104780.0,0.80351888]
[1747671610758,0.0324,104790.0,104780.0,0.80351888]
[1747671611483,0.0324,104790.0,104780.0,0.65986788]
[1747671614174,0.40126798,104790.0,104780.0,0.22255848]
[1747671614348,0.40126798,104790.0,104780.0,0.56255848]
[1747671614486,0.09122712,104790.0,104780.0,0.56255848]
[1747671614688,0.09420922,104790.0,104780.0,0.56255848]
[1747671614900,0.08466669,104790.0,104780.0,0.56255848]
[1747671615155,0.10375184,104790.0,104780.0,0.56728643]
[1747671615368,0.10375175,104790.0,104780.0,0.56728643]
[1747671615687,0.09420913,104790.0,104780.0,0.56728643]
[1747671616977,0.09420922,104790.0,104780.0,0.56728643]
[1747671617155,0.08466669,104790.0,104780.0,0.56728643]
[1747671617481,0.09420922,104790.0,104780.0,0.56728643]
[1747671617644,0.09420913,104790.0,104780.0,0.56728643]
[1747671618046,0.08466669,104790.0,104780.0,0.56728643]
[1747671618264,0.08466669,104790.0,104780.0,0.50259598]
[1747671619009,0.08466669,104790.0,104780.0,0.53122629]
[1747671619406,0.06558219,104790.0,104780.0,0.53122629]
[1747671619647,0.0626,104790.0,104780.0,0.53122629]
[1747671619913,0.07214216,104790.0,104780.0,0.53122629]
[1747671620145,0.0626,104790.0,104780.0,0.53122629]
[1747671620353,0.07214216,104790.0,104780.0,0.53122629]
[1747671620870,0.0846666,104790.0,104780.0,0.53122629]
[1747671621512,0.06558219,104790.0,104780.0,0.53122629]
[1747671621715,0.07512435,104790.0,104780.0,0.53122629]
[1747671622122,0.05512435,104790.0,104780.0,0.53122629]
[1747671622530,0.04558219,104790.0,104780.0,0.53122629]
[1747671622720,0.0124,104790.0,104780.0,0.53122629]
[1747671622969,0.004,104790.0,104780.0,0.62853569]
[1747671623154,0.004,104790.0,104780.0,0.66173569]
[1747671623843,0.002,104790.0,104780.0,0.65700774]
[1747671624233,0.31844206,104800.0,104790.0,0.21948548]
[1747671624489,0.3089009,104800.0,104790.0,0.21948548]
[1747671624911,0.3089009,104800.0,104790.0,0.55948548]
[1747671625329,0.3089009,104800.0,104790.0,0.59228548]
[1747671625666,0.1157809,104800.0,104790.0,0.68959488]
[1747671625870,0.1167809,104800.0,104790.0,0.68959488]
[1747671626890,0.1187809,104800.0,104790.0,0.68959488]
[1747671627097,0.1187809,104800.0,104790.0,3.05889316]
[1747671627305,0.1187809,104800.0,104790.0,2.66533084]
[1747671627781,0.1187809,104800.0,104790.0,2.23656684]
[1747671627982,0.1187809,104800.0,104790.0,2.16949184]
[1747671628183,0.1187809,104800.0,104790.0,1.66132384]
[1747671628389,0.1187809,104800.0,104790.0,1.53599684]
[1747671628584,0.09589929,104800.0,104790.0,1.53599684]
[1747671628822,0.09589929,104800.0,104790.0,1.54558441]
[1747671629234,0.06157718,104800.0,104790.0,1.54558441]
[1747671630271,0.06157718,104800.0,104790.0,1.73830441]
[1747671630889,0.06157718,104800.0,104790.0,1.75284526]